[Event "*** Titled Tuesday Blitz"]
[Site "Chess.com"]
[Date "2021.02.02"]
[Round "4"]
[White "mirochka"]
[Black "kai_nov"]
[Result "1-0"]
[WhiteElo "2208"]
[BlackElo "2391"]
[TimeControl "180+1"]
[EndTime "10:43:10 PST"]
[Termination "mirochka won by checkmate"]

1. e4 {[%clk 0:03:00.9]} 1... c5 {[%clk 0:02:59.6]} 2. d4 {[%clk 0:02:59.3]}
2... cxd4 {[%clk 0:02:59]} 3. c3 {[%clk 0:02:59.6]} 3... Nf6 {[%clk 0:02:56.1]}
4. e5 {[%clk 0:02:58.4]} 4... Nd5 {[%clk 0:02:49.7]} 5. Nf3 {[%clk 0:02:57.8]}
5... Nc6 {[%clk 0:02:44.2]} 6. Bc4 {[%clk 0:02:56.6]} 6... Nb6 {[%clk
0:02:25.3]} 7. Bb3 {[%clk 0:02:56.1]} 7... d5 {[%clk 0:02:22.6]} 8. exd6 {[%clk
0:02:52.5]} 8... Qxd6 {[%clk 0:02:19.9]} 9. Na3 {[%clk 0:02:51.8]} 9... dxc3
{[%clk 0:02:14.6]} 10. Qxd6 {[%clk 0:02:26.1]} 10... exd6 {[%clk 0:02:14]} 11.
Nb5 {[%clk 0:02:25.7]} 11... Rb8 {[%clk 0:02:06.8]} 12. bxc3 {[%clk 0:02:12.6]}
12... a6 {[%clk 0:02:02.9]} 13. Be3 {[%clk 0:01:55.7]} 13... axb5 {[%clk
0:01:57]} 14. Bxb6 {[%clk 0:01:54.9]} 14... Be7 {[%clk 0:01:53.4]} 15. Nd4
{[%clk 0:01:42.4]} 15... b4 {[%clk 0:01:29.3]} 16. O-O-O {[%clk 0:01:02]} 16...
bxc3 {[%clk 0:00:57.9]} 17. Rhe1 {[%clk 0:01:00.3]} 17... O-O {[%clk 0:00:54.6]}
18. Nxc6 {[%clk 0:00:44.6]} 18... Bg5+ {[%clk 0:00:53.8]} 19. Kc2 {[%clk
0:00:44]} 19... bxc6 {[%clk 0:00:53.4]} 20. Bc7 {[%clk 0:00:41.5]} 20... Bf5+
{[%clk 0:00:50]} 21. Kxc3 {[%clk 0:00:39.5]} 21... Bf6+ {[%clk 0:00:39.7]} 22.
Kd2 {[%clk 0:00:36.2]} 22... Rb7 {[%clk 0:00:15.8]} 23. Bxd6 {[%clk 0:00:35]}
23... Rd7 {[%clk 0:00:15.4]} 24. Ke2 {[%clk 0:00:32.4]} 24... Rfd8 {[%clk
0:00:14.5]} 25. Bb4 {[%clk 0:00:30.3]} 25... Bd3+ {[%clk 0:00:13]} 26. Ke3
{[%clk 0:00:29.9]} 26... g6 {[%clk 0:00:02.9]} 27. f3 {[%clk 0:00:29.9]} 27...
Bg5+ {[%clk 0:00:02.6]} 28. f4 {[%clk 0:00:29.7]} 28... Bh4 {[%clk 0:00:02.8]}
29. g3 {[%clk 0:00:29.5]} 29... Bf6 {[%clk 0:00:03.3]} 30. Kf3 {[%clk
0:00:29.6]} 30... Rd6 {[%clk 0:00:02.4]} 31. Bxd6 {[%clk 0:00:27.8]} 31... Rxd6
{[%clk 0:00:02.9]} 32. Re8+ {[%clk 0:00:27]} 32... Kg7 {[%clk 0:00:03.4]} 33.
Ree1 {[%clk 0:00:27]} 33... c5 {[%clk 0:00:03.2]} 34. Re3 {[%clk 0:00:26.7]}
34... c4 {[%clk 0:00:01.7]} 35. Bxc4 {[%clk 0:00:24.6]} 35... Be4+ {[%clk
0:00:02]} 36. Kxe4 {[%clk 0:00:24.7]} 36... Rxd1 {[%clk 0:00:02.1]} 37. Rd3
{[%clk 0:00:22.9]} 37... Rb1 {[%clk 0:00:01.3]} 38. Rb3 {[%clk 0:00:22.6]} 38...
Rc1 {[%clk 0:00:01.4]} 39. Bd5 {[%clk 0:00:22.3]} 39... Rc2 {[%clk 0:00:01.7]}
40. Rb7 {[%clk 0:00:21.6]} 40... Rxh2 {[%clk 0:00:01.6]} 41. Rxf7+ {[%clk
0:00:21.7]} 41... Kh6 {[%clk 0:00:02]} 42. Rxf6 {[%clk 0:00:22.3]} 42... Re2+
{[%clk 0:00:02.1]} 43. Kd4 {[%clk 0:00:22.5]} 43... Kh5 {[%clk 0:00:02.2]} 44.
Rf7 {[%clk 0:00:20.7]} 44... h6 {[%clk 0:00:02]} 45. Rh7 {[%clk 0:00:20.6]}
45... Kg4 {[%clk 0:00:01.5]} 46. Rxh6 {[%clk 0:00:20.6]} 46... Kxg3 {[%clk
0:00:01.9]} 47. Rxg6+ {[%clk 0:00:21.2]} 47... Kxf4 {[%clk 0:00:02.3]} 48. Ra6
{[%clk 0:00:21.4]} 48... Rd2+ {[%clk 0:00:02.1]} 49. Kc5 {[%clk 0:00:22]} 49...
Rd1 {[%clk 0:00:02.3]} 50. Bc4 {[%clk 0:00:22.4]} 50... Ke5 {[%clk 0:00:02.3]}
51. Re6+ {[%clk 0:00:21.8]} 51... Kf5 {[%clk 0:00:02.2]} 52. Re8 {[%clk
0:00:22.4]} 52... Rc1 {[%clk 0:00:02.5]} 53. a4 {[%clk 0:00:22.8]} 53... Ra1
{[%clk 0:00:02.5]} 54. Ra8 {[%clk 0:00:22.1]} 54... Ra3 {[%clk 0:00:01.8]} 55.
a5 {[%clk 0:00:22.6]} 55... Ke5 {[%clk 0:00:02.2]} 56. a6 {[%clk 0:00:23.1]}
56... Kf6 {[%clk 0:00:02.5]} 57. Re8 {[%clk 0:00:23.4]} 57... Kg7 {[%clk
0:00:02.2]} 58. Re2 {[%clk 0:00:23.4]} 58... Ra5+ {[%clk 0:00:02.3]} 59. Kb4
{[%clk 0:00:21.8]} 59... Ra1 {[%clk 0:00:02.5]} 60. Ra2 {[%clk 0:00:22.2]} 60...
Rb1+ {[%clk 0:00:02.9]} 61. Kc5 {[%clk 0:00:22.6]} 61... Rb8 {[%clk 0:00:02.8]}
62. a7 {[%clk 0:00:22.8]} 62... Ra8 {[%clk 0:00:03]} 63. Kb6 {[%clk 0:00:23]}
63... Rc8 {[%clk 0:00:03.1]} 64. Bd5 {[%clk 0:00:22.1]} 64... Rd8 {[%clk
0:00:03.4]} 65. a8=Q {[%clk 0:00:22.2]} 65... Rd6+ {[%clk 0:00:03.6]} 66. Kc7
{[%clk 0:00:20.6]} 66... Rf6 {[%clk 0:00:03.3]} 67. Qd8 {[%clk 0:00:19.2]} 67...
Rg6 {[%clk 0:00:03.3]} 68. Qe7+ {[%clk 0:00:19]} 68... Kh6 {[%clk 0:00:03]} 69.
Rh2# {[%clk 0:00:18.9]} 1-0

[Event "*** Titled Tuesday Blitz"]
[Site "Chess.com"]
[Date "2021.02.02"]
[Round "4"]
[White "ZEN-22"]
[Black "SlavenPastar"]
[Result "0-1"]
[WhiteElo "2476"]
[BlackElo "2638"]
[TimeControl "180+1"]
[EndTime "10:43:11 PST"]
[Termination "SlavenPastar won by checkmate"]

1. e3 {[%clk 0:03:00.9]} 1... b6 {[%clk 0:03:00.9]} 2. Ne2 {[%clk 0:03:00.7]}
2... Bb7 {[%clk 0:03:01.5]} 3. d4 {[%clk 0:03:01.6]} 3... e6 {[%clk 0:03:01.4]}
4. c4 {[%clk 0:03:01.4]} 4... f5 {[%clk 0:03:00.8]} 5. Nbc3 {[%clk 0:03:02.3]}
5... Nf6 {[%clk 0:03:00.9]} 6. d5 {[%clk 0:03:03]} 6... Na6 {[%clk 0:02:48.9]}
7. a3 {[%clk 0:03:02.3]} 7... Nc5 {[%clk 0:02:47.8]} 8. b4 {[%clk 0:03:00]} 8...
Nce4 {[%clk 0:02:47.5]} 9. Nxe4 {[%clk 0:02:58.8]} 9... Nxe4 {[%clk 0:02:46.9]}
10. Bb2 {[%clk 0:02:56]} 10... a5 {[%clk 0:02:46.5]} 11. b5 {[%clk 0:02:52.5]}
11... Nf6 {[%clk 0:02:19.6]} 12. Nf4 {[%clk 0:02:49.2]} 12... exd5 {[%clk
0:02:15.8]} 13. Nxd5 {[%clk 0:02:46.9]} 13... Nxd5 {[%clk 0:02:10.3]} 14. cxd5
{[%clk 0:02:46.9]} 14... Qg5 {[%clk 0:02:07.3]} 15. h4 {[%clk 0:02:41.8]} 15...
Qg6 {[%clk 0:01:39.1]} 16. g3 {[%clk 0:02:26.6]} 16... Bd6 {[%clk 0:01:22.6]}
17. h5 {[%clk 0:02:24.7]} 17... Qh6 {[%clk 0:01:17.4]} 18. Bg2 {[%clk
0:02:13.7]} 18... O-O {[%clk 0:01:07.3]} 19. Qd4 {[%clk 0:02:08]} 19... Rae8
{[%clk 0:01:04.4]} 20. Bf3 {[%clk 0:02:04.9]} 20... f4 {[%clk 0:00:47.6]} 21.
gxf4 {[%clk 0:01:38.6]} 21... Rxf4 {[%clk 0:00:46.7]} 22. Qd1 {[%clk 0:01:35.3]}
22... Rf7 {[%clk 0:00:44.7]} 23. Qe2 {[%clk 0:01:25.7]} 23... Ref8 {[%clk
0:00:42.2]} 24. Be4 {[%clk 0:01:17.9]} 24... Rxf2 {[%clk 0:00:24.8]} 25. Qxf2
{[%clk 0:01:18.8]} 25... Rxf2 {[%clk 0:00:25.2]} 26. Kxf2 {[%clk 0:01:18.5]}
26... Bc5 {[%clk 0:00:18.6]} 27. Rae1 {[%clk 0:01:04.1]} 27... Qd6 {[%clk
0:00:18.8]} 28. Rhg1 {[%clk 0:00:56.4]} 28... Qh2+ {[%clk 0:00:16.7]} 29. Kf1
{[%clk 0:00:43.2]} 29... Qxb2 {[%clk 0:00:15.9]} 30. Re2 {[%clk 0:00:40.4]}
30... Qxb5 {[%clk 0:00:14.5]} 31. Kf2 {[%clk 0:00:36.6]} 31... Ba6 {[%clk
0:00:12.7]} 32. Rc2 {[%clk 0:00:34.6]} 32... Qb3 {[%clk 0:00:11.2]} 33. Re1
{[%clk 0:00:31.8]} 33... Bd3 {[%clk 0:00:11.6]} 34. Bxd3 {[%clk 0:00:29.4]}
34... Qxd3 {[%clk 0:00:10.2]} 35. Ree2 {[%clk 0:00:30.3]} 35... Qxd5 {[%clk
0:00:10]} 36. Ke1 {[%clk 0:00:28.7]} 36... Qxh5 {[%clk 0:00:10.4]} 37. Rh2
{[%clk 0:00:26.5]} 37... Qe5 {[%clk 0:00:10.1]} 38. Rce2 {[%clk 0:00:26]} 38...
Qc3+ {[%clk 0:00:10.2]} 39. Kf2 {[%clk 0:00:25.7]} 39... Qxa3 {[%clk 0:00:10.8]}
40. Rh3 {[%clk 0:00:24.9]} 40... Qc3 {[%clk 0:00:11.2]} 41. Kg2 {[%clk
0:00:23.6]} 41... a4 {[%clk 0:00:10.2]} 42. e4 {[%clk 0:00:22.4]} 42... Qe5
{[%clk 0:00:10.6]} 43. Rg3 {[%clk 0:00:20.9]} 43... a3 {[%clk 0:00:11]} 44. Kh3
{[%clk 0:00:19.7]} 44... a2 {[%clk 0:00:10.1]} 45. Rxa2 {[%clk 0:00:16.8]} 45...
Qe6+ {[%clk 0:00:09.6]} 46. Rg4 {[%clk 0:00:16]} 46... Qxa2 {[%clk 0:00:10]} 47.
Kh4 {[%clk 0:00:16.9]} 47... Qe6 {[%clk 0:00:10.2]} 48. e5 {[%clk 0:00:16.7]}
48... Qxg4+ {[%clk 0:00:10.1]} 49. Kxg4 {[%clk 0:00:16.6]} 49... Kf7 {[%clk
0:00:11]} 50. Kf5 {[%clk 0:00:17.5]} 50... Ke7 {[%clk 0:00:11]} 51. Ke4 {[%clk
0:00:18.3]} 51... Ke6 {[%clk 0:00:11.9]} 52. Kd3 {[%clk 0:00:18.2]} 52... g6
{[%clk 0:00:12.3]} 53. Kc4 {[%clk 0:00:19.1]} 53... Kxe5 {[%clk 0:00:08.8]} 54.
Kd3 {[%clk 0:00:20]} 54... g5 {[%clk 0:00:08.9]} 55. Kc4 {[%clk 0:00:20.8]}
55... g4 {[%clk 0:00:09.8]} 56. Kb5 {[%clk 0:00:20.9]} 56... g3 {[%clk
0:00:10.7]} 57. Ka6 {[%clk 0:00:21.7]} 57... g2 {[%clk 0:00:11.3]} 58. Kb7
{[%clk 0:00:22.3]} 58... g1=Q {[%clk 0:00:11.7]} 59. Kxc7 {[%clk 0:00:21.6]}
59... h5 {[%clk 0:00:12.2]} 60. Kxd7 {[%clk 0:00:20.9]} 60... h4 {[%clk
0:00:12.4]} 61. Kc8 {[%clk 0:00:21.7]} 61... h3 {[%clk 0:00:12.8]} 62. Kb8
{[%clk 0:00:22.6]} 62... h2 {[%clk 0:00:13]} 63. Ka7 {[%clk 0:00:21.5]} 63...
Qg7+ {[%clk 0:00:11.3]} 64. Ka6 {[%clk 0:00:22.4]} 64... h1=Q {[%clk 0:00:11]}
65. Kb5 {[%clk 0:00:23.3]} 65... Qb1+ {[%clk 0:00:10.8]} 66. Kc6 {[%clk
0:00:23.2]} 66... Qf6+ {[%clk 0:00:09.5]} 67. Kb7 {[%clk 0:00:22.8]} 67... Qe4+
{[%clk 0:00:09]} 68. Ka6 {[%clk 0:00:23.7]} 68... Qa4+ {[%clk 0:00:08.5]} 69.
Kb7 {[%clk 0:00:24]} 69... Qe7+ {[%clk 0:00:09]} 70. Kb8 {[%clk 0:00:24.1]}
70... Qaa7+ {[%clk 0:00:09.2]} 71. Kc8 {[%clk 0:00:24.1]} 71... Qa8# {[%clk
0:00:09.8]} 0-1

[Event "*** Titled Tuesday Blitz"]
[Site "Chess.com"]
[Date "2021.02.02"]
[Round "4"]
[White "Taabling"]
[Black "erlesfar"]
[Result "0-1"]
[WhiteElo "2323"]
[BlackElo "2496"]
[TimeControl "180+1"]
[EndTime "10:43:11 PST"]
[Termination "erlesfar won on time"]

1. e4 {[%clk 0:03:00]} 1... d5 {[%clk 0:02:59.2]} 2. exd5 {[%clk 0:02:59.2]}
2... Qxd5 {[%clk 0:02:58]} 3. Nc3 {[%clk 0:02:56.6]} 3... Qa5 {[%clk 0:02:57.6]}
4. d4 {[%clk 0:02:54.7]} 4... Nf6 {[%clk 0:02:57.6]} 5. Bc4 {[%clk 0:02:53]}
5... Nc6 {[%clk 0:02:56.9]} 6. d5 {[%clk 0:02:42.5]} 6... Nb4 {[%clk 0:02:55.8]}
7. Bb5+ {[%clk 0:02:38.1]} 7... c6 {[%clk 0:02:54.7]} 8. dxc6 {[%clk 0:02:35.6]}
8... Nxc6 {[%clk 0:02:54.4]} 9. Ne2 {[%clk 0:02:31.8]} 9... Bg4 {[%clk
0:02:53.3]} 10. h3 {[%clk 0:02:29.4]} 10... Rd8 {[%clk 0:02:40.4]} 11. Bd2
{[%clk 0:02:29.2]} 11... Bh5 {[%clk 0:02:38.4]} 12. O-O {[%clk 0:02:21.7]} 12...
e6 {[%clk 0:02:35.4]} 13. a3 {[%clk 0:02:19.2]} 13... Qb6 {[%clk 0:02:29.3]} 14.
Qe1 {[%clk 0:02:02]} 14... Be7 {[%clk 0:02:23.5]} 15. Be3 {[%clk 0:01:59.7]}
15... Qc7 {[%clk 0:02:22.4]} 16. Bd3 {[%clk 0:01:53.8]} 16... O-O {[%clk
0:02:19.6]} 17. Nf4 {[%clk 0:01:50.3]} 17... Bg6 {[%clk 0:02:18]} 18. Nxg6
{[%clk 0:01:50]} 18... hxg6 {[%clk 0:02:17.3]} 19. Nb5 {[%clk 0:01:47.3]} 19...
Qb8 {[%clk 0:02:15.9]} 20. Rd1 {[%clk 0:01:43.1]} 20... a6 {[%clk 0:02:15.3]}
21. Nc3 {[%clk 0:01:43.1]} 21... Nd5 {[%clk 0:02:13.8]} 22. Nxd5 {[%clk
0:01:40.6]} 22... exd5 {[%clk 0:02:12.7]} 23. Bb6 {[%clk 0:01:40]} 23... Rd7
{[%clk 0:02:11.8]} 24. Qe3 {[%clk 0:01:38.1]} 24... Bf6 {[%clk 0:02:10.5]} 25.
c3 {[%clk 0:01:36.4]} 25... Re8 {[%clk 0:02:08.4]} 26. Qc1 {[%clk 0:01:32.7]}
26... Qd6 {[%clk 0:02:02.9]} 27. Be3 {[%clk 0:01:27.5]} 27... Rde7 {[%clk
0:01:57.7]} 28. Bf4 {[%clk 0:01:24.8]} 28... Qc5 {[%clk 0:01:51.8]} 29. Bc2
{[%clk 0:01:22.8]} 29... d4 {[%clk 0:01:48.4]} 30. Bb3 {[%clk 0:01:03.1]} 30...
Re2 {[%clk 0:01:26.2]} 31. Rd2 {[%clk 0:00:57]} 31... dxc3 {[%clk 0:01:19.8]}
32. Rxe2 {[%clk 0:00:56.1]} 32... Rxe2 {[%clk 0:01:17.8]} 33. Be3 {[%clk
0:00:50.9]} 33... Qb5 {[%clk 0:01:06.4]} 34. Qd1 {[%clk 0:00:41.3]} 34... cxb2
{[%clk 0:01:01.9]} 35. Ba4 {[%clk 0:00:32.4]} 35... b1=Q {[%clk 0:00:51.5]} 36.
Qxb1 {[%clk 0:00:24.2]} 36... Qxa4 {[%clk 0:00:50.1]} 37. Qxb7 {[%clk
0:00:24.7]} 37... Qb5 {[%clk 0:00:45.3]} 38. Qc8+ {[%clk 0:00:24.2]} 38... Kh7
{[%clk 0:00:43.2]} 39. Qd7 {[%clk 0:00:22.2]} 39... Ne5 {[%clk 0:00:40.6]} 40.
Qd1 {[%clk 0:00:19.9]} 40... Qd3 {[%clk 0:00:36.7]} 41. Qa4 {[%clk 0:00:19.8]}
41... Nc4 {[%clk 0:00:35.2]} 42. Bc5 {[%clk 0:00:16.7]} 42... Bd4 {[%clk
0:00:29.8]} 43. Rd1 {[%clk 0:00:15.5]} 43... Bxf2+ {[%clk 0:00:26.1]} 44. Bxf2
{[%clk 0:00:14.5]} 44... Qe4 {[%clk 0:00:20.4]} 45. Rf1 {[%clk 0:00:13.8]} 45...
Nd2 {[%clk 0:00:18.5]} 46. Qxe4 {[%clk 0:00:13.5]} 46... Nxe4 {[%clk 0:00:18.4]}
47. Bc5 {[%clk 0:00:13.3]} 47... f5 {[%clk 0:00:18.3]} 48. Bb4 {[%clk 0:00:12]}
48... Rc2 {[%clk 0:00:18]} 49. Rf3 {[%clk 0:00:11.3]} 49... Ng5 {[%clk
0:00:17.4]} 50. Rf2 {[%clk 0:00:10.4]} 50... Rxf2 {[%clk 0:00:15.8]} 51. Kxf2
{[%clk 0:00:11.3]} 51... Ne4+ {[%clk 0:00:16.2]} 52. Kf3 {[%clk 0:00:11.4]}
52... g5 {[%clk 0:00:16.6]} 53. g4 {[%clk 0:00:10.7]} 53... Kg6 {[%clk
0:00:16.5]} 54. gxf5+ {[%clk 0:00:10.5]} 54... Kxf5 {[%clk 0:00:16.7]} 55. Bf8
{[%clk 0:00:10.9]} 55... g6 {[%clk 0:00:16.1]} 56. Be7 {[%clk 0:00:10.6]} 56...
Nd2+ {[%clk 0:00:15.4]} 57. Ke2 {[%clk 0:00:10.2]} 57... Nc4 {[%clk 0:00:16.3]}
58. Kf3 {[%clk 0:00:08.7]} 58... Ne5+ {[%clk 0:00:16.6]} 59. Kg3 {[%clk
0:00:08.1]} 59... g4 {[%clk 0:00:16.7]} 60. hxg4+ {[%clk 0:00:07.7]} 60... Nxg4
{[%clk 0:00:16.3]} 61. Bb4 {[%clk 0:00:07.4]} 61... Ne5 {[%clk 0:00:15.9]} 62.
Bf8 {[%clk 0:00:07.1]} 62... g5 {[%clk 0:00:16.1]} 63. Bd6 {[%clk 0:00:06.1]}
63... Nc4 {[%clk 0:00:15.7]} 64. Be7 {[%clk 0:00:05.9]} 64... g4 {[%clk
0:00:16.6]} 65. Bf8 {[%clk 0:00:03.5]} 65... Nd2 {[%clk 0:00:16.4]} 66. Bc5
{[%clk 0:00:03.7]} 66... Ne4+ {[%clk 0:00:17.3]} 67. Kg2 {[%clk 0:00:03.9]}
67... Nxc5 {[%clk 0:00:17.7]} 0-1

[Event "*** Titled Tuesday Blitz"]
[Site "Chess.com"]
[Date "2021.02.02"]
[Round "4"]
[White "Happy1712Drummer"]
[Black "bazar-wokzal"]
[Result "1/2-1/2"]
[WhiteElo "2348"]
[BlackElo "2525"]
[TimeControl "180+1"]
[EndTime "10:43:14 PST"]
[Termination "Game drawn by agreement"]

1. d4 {[%clk 0:03:00.9]} 1... Nf6 {[%clk 0:02:59.4]} 2. Nf3 {[%clk 0:03:00.8]}
2... e6 {[%clk 0:02:57]} 3. g3 {[%clk 0:03:01.7]} 3... b5 {[%clk 0:02:54.7]} 4.
Bg2 {[%clk 0:03:02.6]} 4... Bb7 {[%clk 0:02:54.7]} 5. O-O {[%clk 0:02:56.5]}
5... c5 {[%clk 0:02:54.6]} 6. c3 {[%clk 0:02:54.9]} 6... Na6 {[%clk 0:02:54.2]}
7. a4 {[%clk 0:02:54.1]} 7... b4 {[%clk 0:02:54.1]} 8. Bf4 {[%clk 0:02:48.7]}
8... Be7 {[%clk 0:02:52.1]} 9. Nbd2 {[%clk 0:02:46.1]} 9... bxc3 {[%clk
0:02:48.7]} 10. bxc3 {[%clk 0:02:45.7]} 10... cxd4 {[%clk 0:02:49.1]} 11. cxd4
{[%clk 0:02:46.2]} 11... Nb4 {[%clk 0:02:47.6]} 12. Nc4 {[%clk 0:02:44.5]} 12...
Ne4 {[%clk 0:02:31.7]} 13. Qb3 {[%clk 0:02:01.5]} 13... O-O {[%clk 0:02:22.6]}
14. Ne1 {[%clk 0:01:49.7]} 14... d5 {[%clk 0:02:04.6]} 15. Ne5 {[%clk 0:01:41]}
15... Ba6 {[%clk 0:02:01.2]} 16. N1d3 {[%clk 0:01:38.4]} 16... f6 {[%clk
0:01:09.6]} 17. Nxb4 {[%clk 0:01:13.6]} 17... fxe5 {[%clk 0:00:57.9]} 18. Nxa6
{[%clk 0:01:04.6]} 18... exf4 {[%clk 0:00:56.8]} 19. Bxe4 {[%clk 0:01:04]} 19...
dxe4 {[%clk 0:00:53.8]} 20. Qxe6+ {[%clk 0:01:01.6]} 20... Kh8 {[%clk
0:00:54.1]} 21. Qxe4 {[%clk 0:01:01.3]} 21... Rc8 {[%clk 0:00:44.1]} 22. Rac1
{[%clk 0:00:43.3]} 22... Rxc1 {[%clk 0:00:35.2]} 23. Rxc1 {[%clk 0:00:42.8]}
23... Bf6 {[%clk 0:00:26.5]} 24. Rd1 {[%clk 0:00:38.7]} 24... fxg3 {[%clk
0:00:20.9]} 25. hxg3 {[%clk 0:00:38.1]} 25... Re8 {[%clk 0:00:21.3]} 26. Qg4
{[%clk 0:00:31.8]} 26... Qa5 {[%clk 0:00:18.1]} 27. Nc5 {[%clk 0:00:27.7]} 27...
Qc3 {[%clk 0:00:18.3]} 28. e3 {[%clk 0:00:23.7]} 28... Qc2 {[%clk 0:00:18]} 29.
Nd7 {[%clk 0:00:19.9]} 29... Be7 {[%clk 0:00:17.1]} 30. Ne5 {[%clk 0:00:19.6]}
30... Rf8 {[%clk 0:00:16.8]} 31. Rf1 {[%clk 0:00:15.6]} 31... Qxa4 {[%clk
0:00:16.3]} 32. Qe6 {[%clk 0:00:15.6]} 32... Qe8 {[%clk 0:00:16.5]} 33. Nc6
{[%clk 0:00:14.6]} 33... Bf6 {[%clk 0:00:16.5]} 34. Qxe8 {[%clk 0:00:14.2]}
34... Rxe8 {[%clk 0:00:17.2]} 35. Nxa7 {[%clk 0:00:14.6]} 35... Ra8 {[%clk
0:00:17.1]} 36. Nc6 {[%clk 0:00:14.4]} 36... Ra2 {[%clk 0:00:17]} 37. Nb4 {[%clk
0:00:14.2]} 37... Rd2 {[%clk 0:00:16.3]} 38. Nd5 {[%clk 0:00:14.4]} 38... Bg5
{[%clk 0:00:15.6]} 39. Kg2 {[%clk 0:00:13.6]} 39... h5 {[%clk 0:00:15.1]} 40.
Kf3 {[%clk 0:00:13.6]} 40... g6 {[%clk 0:00:14.9]} 41. Nf4 {[%clk 0:00:12.1]}
41... Kh7 {[%clk 0:00:14.4]} 42. Rh1 {[%clk 0:00:10.6]} 42... Bf6 {[%clk
0:00:11.4]} 43. Nh3 {[%clk 0:00:09.3]} 43... Kg7 {[%clk 0:00:11.4]} 44. Nf4
{[%clk 0:00:08.3]} 44... Be7 {[%clk 0:00:10.6]} 45. Ne6+ {[%clk 0:00:07.6]}
45... Kf6 {[%clk 0:00:10.8]} 46. Nc7 {[%clk 0:00:08]} 46... Bd6 {[%clk
0:00:10.9]} 47. Nd5+ {[%clk 0:00:07.9]} 47... Ke6 {[%clk 0:00:10.9]} 48. Nc3
{[%clk 0:00:08.6]} 48... Rc2 {[%clk 0:00:10.8]} 49. Ne4 {[%clk 0:00:08.9]} 49...
Be7 {[%clk 0:00:11.2]} 50. Rb1 {[%clk 0:00:06.7]} 50... Rc6 {[%clk 0:00:10]} 51.
Rb5 {[%clk 0:00:06.4]} 51... Kf7 {[%clk 0:00:09.1]} 52. Ng5+ {[%clk 0:00:05.7]}
52... Kg7 {[%clk 0:00:08.6]} 53. Ne4 {[%clk 0:00:06.2]} 53... Kf7 {[%clk
0:00:08.3]} 54. d5 {[%clk 0:00:06.2]} 54... Ra6 {[%clk 0:00:08.2]} 55. Rb7
{[%clk 0:00:06.1]} 55... Kf8 {[%clk 0:00:08.1]} 56. Ng5 {[%clk 0:00:05.7]} 56...
Bxg5 {[%clk 0:00:07.9]} 57. e4 {[%clk 0:00:05.4]} 57... Rf6+ {[%clk 0:00:07.8]}
58. Kg2 {[%clk 0:00:05.4]} 58... Rd6 {[%clk 0:00:08.1]} 59. f4 {[%clk 0:00:05]}
59... Be7 {[%clk 0:00:08.4]} 60. Rb5 {[%clk 0:00:05]} 60... Ra6 {[%clk
0:00:08.5]} 61. e5 {[%clk 0:00:05.5]} 61... Ra2+ {[%clk 0:00:08.4]} 62. Kf3
{[%clk 0:00:05.5]} 62... Rd2 {[%clk 0:00:09]} 63. d6 {[%clk 0:00:05.1]} 63...
Bxd6 {[%clk 0:00:09.5]} 64. exd6 {[%clk 0:00:04.7]} 64... Rxd6 {[%clk
0:00:10.2]} 65. Rb7 {[%clk 0:00:04.7]} 65... Kg8 {[%clk 0:00:10.4]} 66. Kg2
{[%clk 0:00:04.6]} 1/2-1/2